bitfinex/quotes_BTCUSD_20250623
["timestamp","ask_amount","ask_price","bid_price","bid_amount"]
[1750717510281,0.0313958,105960.0,105950.0,0.40481893]
[1750717510495,0.04353102,105980.0,105960.0,0.21706196]
[1750717510496,0.42830558,105970.0,105960.0,0.21706196]
[1750717510720,0.42830558,105970.0,105960.0,0.30947455]
[1750717510721,0.43712738,105970.0,105960.0,0.30947455]
[1750717510949,0.43712738,105970.0,105960.0,0.31891087]
[1750717511438,0.43712738,105970.0,105960.0,0.00634705]
[1750717511676,0.46952738,105970.0,105960.0,0.00634705]
[1750717512132,0.31518,105970.0,105960.0,0.00634705]
[1750717512358,0.31518,105970.0,105910.0,0.028372]
[1750717512359,0.4032,105960.0,105910.0,0.028372]
[1750717512618,0.42830558,105920.0,105910.0,0.33790098]
[1750717512856,0.42830558,105930.0,105920.0,0.0094409]
[1750717513084,0.45089936,105930.0,105920.0,0.00635141]
[1750717513322,0.30467378,105930.0,105920.0,0.00635141]
[1750717513551,0.76397936,105930.0,105920.0,0.00635141]
[1750717513787,0.32433708,105930.0,105920.0,0.02329058]
[1750717514025,0.75264266,105930.0,105920.0,0.02329058]
[1750717514740,0.32433708,105930.0,105920.0,0.02729058]
[1750717514975,0.75264266,105930.0,105920.0,0.02729058]
[1750717515197,0.75264266,105930.0,105920.0,0.02728947]
[1750717515465,0.75264266,105930.0,105920.0,0.02493806]
[1750717515688,0.84814452,105930.0,105920.0,0.008]
[1750717515911,0.0305,105920.0,105910.0,0.00013846]
[1750717516131,0.0635,105920.0,105910.0,0.00648996]
[1750717516358,0.25088,105930.0,105910.0,0.19532954]
[1750717516570,0.67918558,105930.0,105910.0,0.30971508]
[1750717516797,0.42830558,105920.0,105910.0,0.31915661]
[1750717517259,0.42830558,105920.0,105910.0,0.00013846]
[1750717517489,0.24988,105930.0,105910.0,0.00013846]
[1750717517490,0.28288,105930.0,105920.0,0.0094409]
[1750717517702,0.71118558,105930.0,105910.0,0.20786154]
[1750717517926,0.42830558,105920.0,105910.0,0.21730298]
[1750717518179,0.42830558,105920.0,105910.0,0.22674371]
[1750717518406,0.42830558,105920.0,105910.0,0.21830289]
[1750717518854,0.2268,105940.0,105930.0,0.21712342]
[1750717519083,0.2268,105940.0,105930.0,0.31262528]
[1750717519330,0.42830558,105940.0,105930.0,0.29374526]
[1750717519551,0.42830558,105940.0,105920.0,0.1982623]
[1750717519783,0.70710558,105960.0,105940.0,0.1982237]
[1750717520010,0.42830558,105950.0,105940.0,0.01691515]
[1750717520230,0.10283102,105970.0,105940.0,0.205697]
[1750717520447,0.42830558,105950.0,105940.0,0.02635445]
[1750717520678,0.70908558,105960.0,105940.0,0.01691515]
[1750717520891,0.42830558,105950.0,105940.0,0.32008144]
[1750717521113,0.42830558,105950.0,105940.0,0.32008126]
[1750717521561,0.42830558,105950.0,105940.0,0.31064232]
[1750717521780,0.42830558,105950.0,105940.0,0.01691515]
[1750717522029,0.70908558,105960.0,105940.0,0.22457949]
[1750717522298,0.42830558,105950.0,105940.0,0.22457958]
[1750717522529,0.42830558,105950.0,105940.0,0.32008126]
[1750717522753,0.28078,105960.0,105940.0,0.20569952]
[1750717522973,0.42830558,105950.0,105940.0,0.01691515]
[1750717523218,0.42830558,105950.0,105940.0,0.20766443]
[1750717523435,0.42830558,105950.0,105940.0,0.22457359]
[1750717523653,0.42830558,105950.0,105940.0,0.01690888]
[1750717523878,0.42830558,105950.0,105940.0,0.20569498]
[1750717524118,0.32666756,105980.0,105940.0,0.23401198]
[1750717524333,0.32666756,105980.0,105940.0,0.32007517]
[1750717524334,0.42830558,105950.0,105940.0,0.32007517]
[1750717524544,0.42830558,105950.0,105940.0,0.32951411]
[1750717524770,0.42830558,105950.0,105940.0,0.39783614]
[1750717524996,0.60598186,105980.0,105940.0,0.40827535]
[1750717524997,0.57478186,105980.0,105940.0,0.40827535]
[1750717525220,0.42830558,105950.0,105940.0,0.39136498]
[1750717525434,0.44593174,105950.0,105940.0,0.41024216]
[1750717525700,0.01762616,105950.0,105940.0,0.41024216]
[1750717525944,0.44593174,105950.0,105940.0,0.39980366]
[1750717526166,0.01762616,105950.0,105940.0,0.39980375]
[1750717526391,0.01762616,105950.0,105940.0,0.28542522]
[1750717526614,0.44593174,105950.0,105940.0,0.0872]
[1750717527068,0.69309174,105950.0,105940.0,0.0872]
[1750717527278,0.26478616,105950.0,105940.0,0.30430293]
[1750717527490,0.69309174,105950.0,105940.0,0.0872]
[1750717527724,0.69309174,105950.0,105940.0,0.29486443]
[1750717527950,0.69309174,105950.0,105940.0,0.2854254]
[1750717528182,0.44593174,105950.0,105940.0,0.3053032]
[1750717528401,0.44593174,105950.0,105940.0,0.2864254]
[1750717528627,0.44593174,105950.0,105940.0,0.29586417]
[1750717528852,0.42830558,105950.0,105940.0,0.0976393]
[1750717529080,0.42830558,105950.0,105940.0,0.29586452]
[1750717529303,0.42830558,105950.0,105940.0,0.30530355]
[1750717529537,0.42830558,105950.0,105940.0,0.2864254]
[1750717529818,0.42830558,105950.0,105940.0,0.30530337]
[1750717530048,0.42830558,105950.0,105940.0,0.31474214]
[1750717530277,0.2468,105960.0,105940.0,0.32418002]
[1750717530551,0.01763625,105960.0,105950.0,0.18876828]
[1750717530869,0.42830558,105960.0,105950.0,0.30314651]
[1750717531060,0.42830558,105960.0,105950.0,0.29370846]
[1750717531296,0.42830558,105960.0,105950.0,0.32202244]
[1750717531520,0.42830558,105960.0,105950.0,0.31258465]
[1750717531751,0.42830558,105960.0,105950.0,0.09550186]
[1750717531970,0.42830558,105960.0,105950.0,0.30314642]
[1750717532190,0.42830558,105960.0,105950.0,0.29370837]
[1750717532433,0.24608,105970.0,105950.0,0.30314651]
[1750717532647,0.42830558,105960.0,105950.0,0.30314651]
[1750717532882,0.24608,105970.0,105960.0,0.1981879]
[1750717533109,0.67438558,105970.0,105960.0,0.20762506]
[1750717533384,0.67438558,105970.0,105960.0,0.00943752]
[1750717533616,0.70448558,105970.0,105950.0,0.09550186]
[1750717533851,0.70448558,105970.0,105940.0,0.30430299]
[1750717533852,0.42830558,105960.0,105940.0,0.30430299]
[1750717534082,0.42830558,105950.0,105940.0,0.08733846]
[1750717534305,0.24424,105950.0,105940.0,0.08733846]
[1750717534533,0.67254558,105950.0,105940.0,0.08733846]
[1750717535219,0.70524558,105950.0,105940.0,0.08733846]
[1750717535443,0.75942447,105950.0,105940.0,0.08733846]
[1750717535909,0.33111889,105950.0,105940.0,0.08933846]
[1750717536128,0.75942447,105950.0,105940.0,0.08933846]
[1750717536576,0.75942447,105950.0,105940.0,0.09133846]
[1750717537047,0.02257912,105950.0,105940.0,0.10077767]
[1750717537305,0.42830558,105960.0,105940.0,0.51144126]
[1750717537538,0.03321942,105980.0,105960.0,0.21706074]
[1750717537758,0.42830558,105970.0,105960.0,0.09550186]
[1750717538184,0.42830558,105970.0,105960.0,0.30312674]
[1750717538435,0.67174558,105970.0,105950.0,0.19819966]
[1750717538642,0.06767456,105970.0,105960.0,0.09550186]
[1750717538891,0.06767456,105970.0,105950.0,0.30314669]
[1750717538892,0.42830558,105970.0,105950.0,0.30314669]
[1750717539115,0.67186558,105970.0,105960.0,0.22649903]
[1750717539351,0.42830558,105970.0,105960.0,0.22649903]
[1750717539571,0.67182558,105970.0,105960.0,0.22649903]
[1750717541327,0.67182558,105970.0,105960.0,0.22749903]
[1750717541788,0.2318,105980.0,105970.0,0.21704156]
[1750717542024,0.005,105980.0,105970.0,0.37724333]
[1750717542272,0.005,105980.0,105970.0,0.31254333]
[1750717542273,0.43330558,105980.0,105970.0,0.31254333]
[1750717542495,0.005,105980.0,105970.0,0.31254333]
[1750717542938,0.005,105980.0,105970.0,0.34554333]
[1750717543384,0.005,105980.0,105970.0,0.60502333]
[1750717543624,0.005,105980.0,105970.0,1.03332891]
[1750717543838,0.005,105980.0,105970.0,0.63537833]
[1750717544290,0.005,105980.0,105970.0,1.07822476]
[1750717544722,0.005,105980.0,105970.0,1.14482476]
[1750717544945,0.005,105980.0,105970.0,1.08022476]
[1750717545162,0.005,105980.0,105970.0,1.07622476]
[1750717545396,0.02056061,105990.0,105980.0,0.90186742]
[1750717545616,0.46950222,106000.0,105990.0,0.25900051]
[1750717545842,0.46950222,106000.0,105990.0,0.59586237]
[1750717546535,0.46950222,106000.0,105990.0,1.00040322]
[1750717546771,0.01028445,106030.0,106020.0,0.77687996]
[1750717546992,0.00705,106060.0,106040.0,0.4168982]
[1750717547214,0.00705,106060.0,106040.0,1.52909021]
[1750717547433,0.15444849,106050.0,106040.0,1.86909021]
[1750717547906,0.10614849,106050.0,106040.0,0.9447119]
[1750717548110,0.10614849,106050.0,106040.0,1.14640564]
[1750717548324,0.10614849,106050.0,106040.0,1.60094649]
[1750717548553,0.00705,106060.0,106050.0,0.26687774]
[1750717548799,0.00705,106060.0,106050.0,0.80522603]
[1750717549005,0.00705,106060.0,106050.0,0.37692045]
[1750717549229,0.00705,106060.0,106050.0,1.05506103]
[1750717549452,0.00705,106060.0,106050.0,0.3219746]
[1750717549668,0.43535558,106060.0,106050.0,0.5524596]
[1750717549894,0.00705,106060.0,106050.0,0.3487196]
[1750717550359,0.00705,106060.0,106050.0,1.20326045]
[1750717550574,0.00705,106060.0,106050.0,1.15326045]
[1750717551027,0.00705,106060.0,106050.0,0.41326045]
[1750717551498,0.00959585,106080.0,106070.0,0.21683685]
[1750717551718,0.33846228,106090.0,106080.0,0.21681641]
[1750717551943,0.43176578,106100.0,106090.0,0.21679598]
[1750717552162,0.00359854,106100.0,106090.0,0.31229784]
[1750717552383,0.00359854,106100.0,106090.0,0.55125784]
[1750717552610,0.43190412,106100.0,106090.0,0.55125784]
[1750717552863,0.00359854,106100.0,106090.0,0.61579869]
[1750717553121,0.42690412,106100.0,106090.0,0.31229784]
[1750717553373,0.42690412,106100.0,106060.0,0.197989]
[1750717553374,0.0321,106090.0,106060.0,0.197989]
[1750717553609,0.57868,106100.0,106090.0,0.004]
[1750717553833,0.0316,106080.0,106050.0,0.007]
[1750717554050,0.0319,106070.0,106060.0,0.09550186]
[1750717554269,0.39232706,106070.0,106060.0,0.09550186]
[1750717554723,0.0635,106050.0,106020.0,0.10473984]
[1750717554950,0.0635,106040.0,106030.0,0.09550186]
[1750717555172,0.0635,106020.0,105990.0,0.001]
[1750717555397,0.0614,106010.0,106000.0,0.09550186]
[1750717555625,0.48970558,106010.0,106000.0,0.09550186]
[1750717555833,0.48970558,106010.0,105990.0,0.001]
[1750717555834,0.0614,106000.0,105990.0,0.001]
[1750717556056,0.0614,106000.0,105990.0,0.09650186]
[1750717556057,0.94029316,106000.0,105990.0,0.09650186]
[1750717556264,0.51198758,106000.0,105990.0,0.09650186]
[1750717556480,0.6278721,106000.0,105990.0,0.10096357]
[1750717556758,0.62821693,106000.0,105990.0,0.09661874]
[1750717556995,0.62821693,106000.0,105990.0,0.00111688]
[1750717557217,0.86593693,106000.0,105990.0,0.00111688]
[1750717557844,5.79316681,106000.0,105990.0,0.00111688]
[1750717558059,5.79916681,106000.0,105990.0,0.00111688]
[1750717558305,5.92619969,106000.0,105990.0,8.239e-05]
[1750717558527,0.14939473,106000.0,105990.0,8.239e-05]
[1750717558750,0.14939473,106000.0,105990.0,0.10501892]
[1750717558751,0.09002683,106000.0,105990.0,0.10501892]
[1750717558969,0.00634483,106000.0,105990.0,0.31258467]
[1750717559848,0.58293493,106000.0,105990.0,0.31258467]
[1750717560069,0.58293493,106000.0,105990.0,0.30415045]
[1750717560070,0.61553493,106000.0,105990.0,0.30415045]
[1750717560282,0.07134483,106000.0,105990.0,0.31358467]
[1750717560535,0.07134483,106000.0,105990.0,0.30315036]
[1750717560762,0.07134483,106000.0,105990.0,0.31258458]
[1750717560991,0.03274483,106000.0,105990.0,0.31458458]
[1750717561209,0.00034483,106000.0,105990.0,1.55055553]
[1750717561432,0.5767901,106060.0,106040.0,0.19803588]
[1750717561656,0.0646,106030.0,106020.0,0.02829546]
[1750717561912,0.0646,106030.0,106020.0,0.32185057]
[1750717561913,0.6087901,106030.0,106020.0,0.32185057]
[1750717562131,0.0646,106030.0,106020.0,0.32185057]
[1750717562359,0.5441901,106060.0,106040.0,0.20745389]
[1750717562583,0.02229538,106060.0,106050.0,0.31237987]
[1750717562808,0.02229538,106060.0,106050.0,0.32180876]
[1750717562809,0.00246063,106060.0,106050.0,0.32180876]
[1750717563022,0.54465073,106060.0,106050.0,0.32180876]
[1750717563252,0.78161073,106060.0,106040.0,0.18859354]
[1750717563472,0.78161073,106060.0,106030.0,0.21689132]
[1750717563473,0.065,106040.0,106030.0,0.21689132]
[1750717563692,0.6091901,106040.0,106030.0,0.32182385]
[1750717563916,0.065,106040.0,106030.0,0.32182385]
[1750717565068,0.5441901,106050.0,106040.0,0.21688397]
[1750717565319,0.5441901,106050.0,106040.0,0.09550186]
[1750717565539,0.0618,106040.0,106030.0,0.009]
[1750717565758,5.6389642,106040.0,106030.0,0.009]
[1750717565978,0.13908456,106040.0,106030.0,0.11393315]
[1750717566204,0.08412264,106040.0,106030.0,0.30299021]
[1750717566418,0.62831274,106040.0,106030.0,0.09550186]
[1750717566632,0.65623045,106040.0,106030.0,0.09550186]
[1750717566852,0.65623045,106040.0,106030.0,0.30298967]
[1750717567064,0.62831274,106040.0,106030.0,0.09550186]
[1750717567287,0.62831274,106040.0,106030.0,0.001]
[1750717567523,0.69376147,106040.0,106030.0,0.001]
[1750717567743,0.02232264,106040.0,106030.0,0.31342052]
[1750717567972,0.06216063,106060.0,106050.0,0.21687774]
[1750717568220,0.06216063,106060.0,106050.0,0.28409214]
[1750717568446,0.83156904,106060.0,106030.0,0.19905661]
[1750717568688,0.0637,106040.0,106030.0,0.22734888]
[1750717568919,0.62824912,106040.0,106030.0,0.30399012]
[1750717569142,0.62824912,106040.0,106010.0,0.18862891]
[1750717569143,0.0661,106020.0,106010.0,0.18862891]
[1750717569385,0.02235902,106020.0,106010.0,0.28413077]
[1750717569617,0.07706205,106060.0,106050.0,0.02828746]
[1750717569618,0.09608215,106060.0,106050.0,0.02828746]
[1750717569840,0.09608215,106060.0,106050.0,0.21687774]
[1750717569841,0.02438269,106060.0,106050.0,0.21687774]
[1750717570067,0.002,106060.0,106050.0,0.21687774]
[1750717570306,0.002,106060.0,106050.0,0.87165329]
[1750717570546,0.00046063,106060.0,106050.0,1.41584339]
[1750717570806,0.00046063,106060.0,106050.0,1.04395244]
[1750717571038,0.00046063,106060.0,106050.0,0.3407146]
[1750717571294,0.02808215,106090.0,106080.0,0.21681641]
[1750717571526,0.02808215,106090.0,106080.0,1.10371746]
[1750717571527,0.0001,106090.0,106080.0,1.10371746]
[1750717571768,0.0312157,106090.0,106080.0,0.31245661]
[1750717571985,0.0937157,106090.0,106080.0,0.2936039]
[1750717572211,0.0937157,106090.0,106080.0,0.29360399]
[1750717572212,0.12169785,106090.0,106080.0,0.29360399]
[1750717572430,0.68337013,106090.0,106080.0,0.0956402]
[1750717572696,5.68515222,106090.0,106080.0,0.00013834]
[1750717572945,5.68515222,106090.0,106030.0,0.19805635]
[1750717572946,0.0615,106060.0,106050.0,0.19558254]
[1750717573190,0.07530025,106090.0,106080.0,0.20738992]
[1750717573434,0.08412473,106090.0,106080.0,0.20739019]
[1750717573680,0.08412473,106090.0,106080.0,0.003]
[1750717573932,0.08412473,106090.0,106080.0,0.28503881]
[1750717573933,0.91155659,106090.0,106080.0,0.28503881]
[1750717574169,0.91155659,106090.0,106070.0,0.18854004]
[1750717574401,0.63367633,106080.0,106060.0,0.18857224]
[1750717574633,0.57217633,106070.0,106050.0,0.18858254]
[1750717574873,0.66937633,106060.0,106050.0,0.30294315]
[1750717575100,0.77075839,106060.0,106050.0,0.29351391]
[1750717575334,0.22656829,106060.0,106050.0,0.29351391]
[1750717575563,0.77075839,106060.0,106050.0,0.09550186]
[1750717575791,1.00835839,106060.0,106050.0,0.29352156]
[1750717576155,1.00835839,106060.0,106050.0,0.09550186]
[1750717576249,0.0615,106050.0,106030.0,0.19805688]
[1750717576511,0.0615,106030.0,106020.0,0.31219961]
[1750717576744,0.25458623,106050.0,106040.0,0.19803847]
[1750717576972,0.83870191,106050.0,106040.0,0.09550186]
[1750717577200,0.83870191,106050.0,106040.0,0.29354033]
[1750717577443,0.90020191,106050.0,106040.0,0.09550186]
[1750717577668,0.90020191,106050.0,106040.0,0.09571256]
[1750717577902,0.90020191,106050.0,106040.0,0.28432063]
[1750717578129,0.35601181,106050.0,106040.0,0.28432063]
[1750717578362,0.35601181,106050.0,106040.0,0.29475094]
[1750717578607,0.33949652,106050.0,106040.0,0.3900086]
[1750717578833,0.31151029,106050.0,106040.0,0.38057882]
[1750717579074,0.31151029,106050.0,106040.0,0.3900086]
[1750717579297,0.31151029,106050.0,106040.0,0.380579]
[1750717579531,0.31151029,106050.0,106040.0,0.39000904]
[1750717579767,0.31151029,106050.0,106040.0,0.09671256]
[1750717580463,0.88368662,106050.0,106040.0,0.09671256]
[1750717580687,1.09094039,106050.0,106040.0,0.09671256]
[1750717581169,1.18641034,106050.0,106040.0,0.00146063]
[1750717581404,0.0615,106040.0,105990.0,0.00157932]
[1750717581639,0.42954232,106010.0,106000.0,0.09550186]
[1750717581859,4.965293,106000.0,105990.0,0.02993332]
[1750717582079,5.58798075,106000.0,105990.0,0.02993332]
[1750717582300,5.60667293,106000.0,105990.0,0.00157932]
[1750717582789,1.03695993,106000.0,105990.0,0.00157932]
[1750717583237,0.14439499,106000.0,105990.0,0.28591667]
[1750717583463,0.63250039,106000.0,105990.0,0.29535143]
[1750717583687,0.66054717,106000.0,105990.0,0.30578601]
[1750717583932,0.66054717,106000.0,105990.0,0.32465472]
[1750717583933,0.11635707,106000.0,105990.0,0.32465472]
[1750717584195,0.08831029,106000.0,105990.0,0.32465472]
[1750717584393,0.63250039,106000.0,105990.0,0.3232754]
[1750717584609,0.08831029,106000.0,105990.0,0.3232754]
[1750717585478,0.08831029,106000.0,105990.0,0.3222754]
[1750717585917,0.08831029,106000.0,105990.0,0.3262754]
[1750717586821,0.065,106010.0,106000.0,0.20754617]
[1750717587031,0.08743389,106010.0,106000.0,0.30304803]
[1750717587700,0.63162399,106010.0,106000.0,0.29361497]
[1750717587916,0.32135389,106010.0,106000.0,0.32191559]
[1750717588152,0.32135389,106010.0,106000.0,0.31648226]
[1750717588363,0.32135389,106010.0,106000.0,0.32591559]
[1750717588830,0.32135389,106010.0,106000.0,0.32691559]
[1750717589047,0.32135389,106010.0,106000.0,0.31748226]
[1750717589499,0.63162399,106010.0,106000.0,0.2891811]
[1750717589726,0.65967077,106010.0,106000.0,0.30804857]
[1750717589951,0.65967077,106010.0,106000.0,0.3174819]
[1750717590166,0.08743389,106010.0,106000.0,0.3174819]
[1750717590385,0.08743389,106010.0,106000.0,0.30794709]
[1750717590598,0.08743389,106010.0,106000.0,0.30794691]
[1750717590599,0.63162399,106010.0,106000.0,0.30794691]
[1750717590828,0.63162399,106010.0,106000.0,0.19357758]
[1750717591052,0.63162399,106010.0,106000.0,0.30794691]
[1750717591282,0.05874678,106030.0,106000.0,0.59827728]
[1750717591510,0.0887847,106040.0,106030.0,0.20748799]
[1750717591511,0.0634,106040.0,106030.0,0.20748799]
[1750717591724,0.08584758,106040.0,106030.0,0.31242052]
[1750717591949,0.02244758,106040.0,106030.0,0.31242052]
[1750717592183,0.12288678,106060.0,106050.0,0.22630725]
[1750717592403,0.11728342,106060.0,106050.0,0.32169808]
[1750717592648,0.6390301,106060.0,106050.0,0.28409214]
[1750717592868,0.0656,106050.0,106040.0,0.18860802]
[1750717593088,0.6097901,106050.0,106040.0,0.28410988]
[1750717593305,0.63223372,106050.0,106040.0,0.28410988]
[1750717593527,0.0656,106040.0,106030.0,0.19162586]
[1750717593753,0.6097901,106040.0,106030.0,0.30598976]
[1750717593991,0.6054976,106060.0,106050.0,0.21687774]
[1750717594213,0.59989385,106060.0,106050.0,0.3123796]
[1750717594445,0.62879385,106060.0,106050.0,0.09550186]
[1750717594661,0.62879385,106060.0,106050.0,0.28409214]
[1750717594898,0.08460375,106060.0,106050.0,0.30295089]
[1750717595120,0.06216072,106060.0,106050.0,0.32180893]
[1750717595402,0.06216072,106060.0,106050.0,0.55360893]
[1750717595630,0.00046072,106060.0,106050.0,0.55360893]
[1750717595853,0.00046072,106060.0,106050.0,0.32180893]
[1750717596535,0.03086072,106060.0,106050.0,0.55328893]
[1750717596763,0.00046072,106060.0,106050.0,0.39820677]
[1750717597229,0.00046072,106060.0,106050.0,0.32180893]
[1750717598155,0.00046072,106060.0,106050.0,0.32280893]
[1750717598382,0.00046072,106060.0,106050.0,0.40120677]
[1750717598816,0.00046072,106060.0,106050.0,0.40020677]
[1750717599288,0.00046072,106060.0,106050.0,1.35293772]
[1750717599504,0.0001,106090.0,106080.0,0.21681641]
[1750717599740,0.0607,106110.0,106100.0,0.2073511]
[1750717599947,0.06083825,106110.0,106100.0,0.3122774]
[1750717600602,0.00026789,106110.0,106100.0,0.3122774]
[1750717601038,0.06096789,106110.0,106100.0,0.3142774]
[1750717601263,0.03096789,106110.0,106100.0,0.3122774]
[1750717601483,0.00026789,106110.0,106100.0,0.3122774]
[1750717601720,0.00013825,106110.0,106100.0,0.54462776]
[1750717601944,0.00013825,106110.0,106100.0,0.54662776]
[1750717602160,0.00013825,106110.0,106100.0,0.55062776]
[1750717602384,0.00013825,106110.0,106100.0,0.60062776]
[1750717602832,0.00013825,106110.0,106100.0,0.55082776]
[1750717603524,0.00013825,106110.0,106100.0,0.54682776]
[1750717603771,0.00013825,106110.0,106100.0,0.54482776]
[1750717604216,0.00013825,106110.0,106100.0,0.63712143]
[1750717604444,0.60742835,106110.0,106100.0,0.28600327]
[1750717604672,0.60742835,106110.0,106100.0,0.10050186]
[1750717605131,0.60742835,106110.0,106100.0,0.002]
[1750717605353,0.0631,106090.0,106070.0,0.42022009]
[1750717605607,0.6072901,106080.0,106070.0,0.09550186]
[1750717605828,0.0631,106080.0,106070.0,0.31233871]
[1750717606042,0.0637,106090.0,106080.0,0.20738506]
[1750717606266,0.0637,106090.0,106080.0,0.44841128]
[1750717606493,0.0637,106090.0,106080.0,0.4578383]
[1750717606721,0.0637,106090.0,106080.0,0.55334016]
[1750717606971,0.54632835,106110.0,106100.0,0.21677581]
[1750717607202,0.54632835,106110.0,106100.0,0.32170211]
[1750717607420,0.60872835,106110.0,106100.0,0.29342834]
[1750717607642,0.60672835,106110.0,106100.0,0.30285314]
[1750717607854,0.60672835,106110.0,106100.0,0.09550186]
[1750717608542,0.06453825,106110.0,106100.0,0.09550186]
[1750717608773,0.0158187,106120.0,106110.0,0.20733155]
[1750717609006,0.0158187,106120.0,106110.0,0.44999511]
[1750717609718,0.0158187,106120.0,106110.0,0.62189481]
[1750717610682,0.0158187,106120.0,106110.0,0.65250793]
[1750717610932,0.0158187,106120.0,106110.0,0.65450793]
[1750717611362,0.0158187,106120.0,106110.0,0.68415789]
[1750717611580,0.00041826,106150.0,106140.0,0.21669384]
[1750717611809,0.00041826,106150.0,106140.0,0.5449557]
[1750717612044,0.00041826,106150.0,106140.0,0.52611365]
[1750717612307,0.001023,106160.0,106150.0,0.19783316]
[1750717612528,0.001023,106160.0,106150.0,0.31217529]
[1750717613686,0.001023,106160.0,106150.0,0.31563601]
[1750717614370,0.001023,106160.0,106150.0,0.31263601]
[1750717614584,0.001023,106160.0,106150.0,0.32263601]
[1750717615836,0.5452131,106160.0,106150.0,0.32263601]
[1750717616015,0.032123,106160.0,106150.0,0.55375601]
[1750717616656,0.063023,106160.0,106150.0,0.32263601]
[1750717617207,0.6072131,106160.0,106150.0,0.32263601]
[1750717617826,0.6072131,106160.0,106150.0,0.31321601]
[1750717618036,0.6072131,106160.0,106150.0,0.32263601]
[1750717618893,0.063023,106160.0,106150.0,0.32263601]
[1750717619113,0.061123,106160.0,106150.0,0.32263601]
[1750717619325,0.001023,106160.0,106150.0,0.31763601]
[1750717619531,0.001023,106160.0,106150.0,0.31713601]
[1750717619747,0.001023,106160.0,106150.0,0.31213601]
[1750717620204,0.001023,106160.0,106150.0,0.31413601]
[1750717620648,0.6067131,106160.0,106150.0,0.31213601]
[1750717620867,0.6067131,106160.0,106150.0,0.29329574]
[1750717621081,0.6067131,106160.0,106150.0,0.30771619]
[1750717621314,0.6067131,106160.0,106150.0,0.31713646]
[1750717621526,0.6067131,106160.0,106150.0,0.29829583]
[1750717621738,0.6067131,106160.0,106150.0,0.30471619]
[1750717622167,0.62907206,106160.0,106150.0,0.00246072]
[1750717622392,0.0611,106120.0,106110.0,0.19124095]
[1750717622666,0.94624906,106120.0,106110.0,0.29616968]
[1750717622888,0.94624906,106120.0,106110.0,0.30605565]
[1750717623104,0.94624906,106120.0,106110.0,0.09872374]
[1750717623324,0.97421504,106120.0,106110.0,0.00322188]
[1750717623546,0.97421504,106120.0,106110.0,0.31547885]
[1750717623547,0.08565896,106120.0,106110.0,0.31547885]
[1750717623764,0.6074901,106120.0,106110.0,0.31547885]
[1750717623978,0.6074901,106120.0,106110.0,0.31747885]
[1750717624396,0.0633,106120.0,106110.0,0.31547885]
[1750717624809,0.80063608,106140.0,106130.0,0.20729177]
[1750717624810,0.0633,106140.0,106130.0,0.20729177]
[1750717625016,0.0633,106140.0,106130.0,0.30279363]
[1750717625017,0.08570883,106140.0,106130.0,0.30279363]
[1750717625228,0.62989893,106140.0,106130.0,0.31221594]
[1750717625430,0.62989893,106140.0,106130.0,0.123768]
[1750717625634,0.62989893,106140.0,106130.0,0.31221612]
[1750717625837,0.08570883,106140.0,106130.0,0.31021612]
[1750717626514,0.08970883,106140.0,106130.0,0.31021612]
[1750717626762,0.08970883,106140.0,106130.0,0.31021647]
[1750717626958,0.08970883,106140.0,106130.0,0.28194998]
[1750717627172,0.08970883,106140.0,106130.0,0.31021603]
[1750717627173,0.63389893,106140.0,106130.0,0.31021603]
[1750717627387,0.08570883,106140.0,106130.0,0.31963825]
[1750717627610,0.08970883,106140.0,106130.0,0.31021647]
[1750717627842,0.63389893,106140.0,106130.0,0.09350186]
[1750717628055,0.66186491,106140.0,106130.0,0.28194998]
[1750717628232,0.11767481,106140.0,106130.0,0.28194998]
[1750717628458,0.66186491,106140.0,106130.0,0.2933722]
[1750717628667,0.69915289,106140.0,106130.0,0.28394998]
[1750717628888,0.08766279,106140.0,106130.0,0.09550186]
[1750717629116,0.0618,106150.0,106140.0,0.22609814]
[1750717629328,0.08425952,106150.0,106140.0,0.3216]
[1750717629503,0.066923,106160.0,106150.0,0.21667343]
[1750717629743,0.08938242,106160.0,106150.0,0.31217529]
[1750717630618,0.02448242,106160.0,106150.0,0.31217529]
[1750717630824,0.002023,106160.0,106150.0,0.31363717]
[1750717631250,0.002023,106160.0,106150.0,0.32817802]
[1750717631465,0.002023,106160.0,106150.0,0.54143717]
[1750717631676,0.002023,106160.0,106150.0,0.54139717]
[1750717631894,0.066923,106160.0,106150.0,0.2967969]
[1750717632108,0.08937962,106160.0,106150.0,0.00246188]
[1750717632320,0.08937962,106160.0,106150.0,0.21171549]
[1750717632524,0.13489647,106160.0,106150.0,0.1928745]
[1750717632735,0.13489647,106160.0,106150.0,0.00246188]
[1750717632736,0.10693049,106160.0,106150.0,0.00246188]
[1750717632945,0.63743949,106160.0,106150.0,0.00246188]
[1750717633365,0.63743949,106160.0,106150.0,0.00046188]
[1750717633577,0.75348863,106160.0,106150.0,0.00646188]
[1750717633786,0.72263508,106160.0,106150.0,0.00646188]
[1750717634301,0.72263508,106160.0,106150.0,0.00046188]
[1750717634302,0.84580365,106160.0,106150.0,0.00046188]
[1750717634509,0.52849355,106160.0,106150.0,0.00146188]
[1750717634722,1.07268365,106160.0,106150.0,0.00146188]
[1750717635380,1.07468507,106160.0,106150.0,0.00146188]
[1750717635595,1.22634801,106160.0,106150.0,0.00146188]
[1750717635803,1.17021846,106160.0,106150.0,0.00146188]
[1750717636012,1.0747166,106160.0,106150.0,0.08846188]
[1750717636655,1.0934109,106160.0,106150.0,0.08846188]
[1750717636861,6.52377571,106160.0,106150.0,0.08846188]
[1750717637063,6.42830576,106160.0,106150.0,0.08846188]
[1750717637278,6.49260576,106160.0,106150.0,0.08846188]
[1750717637907,1.5865509,106160.0,106150.0,0.08846188]
[1750717638134,0.6836918,106160.0,106150.0,0.08846188]
[1750717638553,0.9121619,106160.0,106150.0,0.08846188]
[1750717638759,0.62164429,106160.0,106150.0,0.09788242]
[1750717638962,0.5775774,106160.0,106150.0,0.09788251]
[1750717639171,0.5775774,106160.0,106150.0,0.08846188]
[1750717639385,1.1217675,106160.0,106150.0,0.08846188]
[1750717639598,1.13572843,106160.0,106150.0,0.08846188]
[1750717640025,1.53388248,106160.0,106150.0,0.08846188]
[1750717640237,6.49129353,106160.0,106150.0,0.08846188]
[1750717640445,6.56517549,106160.0,106150.0,0.08846188]
[1750717640659,6.49129353,106160.0,106150.0,0.08846188]
[1750717640892,0.34,106150.0,106110.0,0.00276]
[1750717641108,0.63522198,106120.0,106110.0,0.00322291]
[1750717641320,5.87865339,106120.0,106110.0,0.00322291]
[1750717641582,5.90619165,106120.0,106110.0,0.00322291]
[1750717641778,0.89144089,106120.0,106110.0,0.00322291]
[1750717642001,0.91955559,106120.0,106110.0,0.00322291]
[1750717642204,0.88206592,106120.0,106110.0,0.00322291]
[1750717642849,0.91955559,106120.0,106110.0,0.00322291]
[1750717643052,0.92814339,106120.0,106110.0,0.00322291]
[1750717643489,0.89065372,106120.0,106110.0,0.00322291]
[1750717643690,0.90002869,106120.0,106110.0,0.00322291]